[Event "Rapid Tournament (RAP)"]
[Site "Biel, Switzerland"]
[Date "2026.07.12"]
[Round "2.18"]
[White "Filipovic, Branko"]
[Black "Jehnichen, Kai"]
[Result "0-1"]
[TimeControl "15 + 5"]
[WhiteTitle "-"]
[BlackTitle "-"]
[WhiteFideId "14507951"]
[BlackFideId "24684333"]
[WhiteElo "2279"]
[BlackElo "1903"]

1. d4 {[%clk 00:15:06]} {[%emt 00:00:04]} d5 {[%clk 00:15:05]} {[%emt
00:00:08]} 2. Bf4 {[%clk 00:15:09]} Nf6 {[%clk 00:15:05]} {[%emt 00:00:05]} 3.
Nf3 {[%clk 00:15:12]} {[%emt 00:00:01]} c6 {[%clk 00:15:03]} {[%emt 00:00:07]}
4. e3 {[%clk 00:15:06]} {[%emt 00:00:11]} Bg4 {[%clk 00:15:03]} {[%emt
00:00:06]} 5. Nbd2 {[%clk 00:14:59]} {[%emt 00:00:11]} e6 {[%clk 00:15:04]}
{[%emt 00:00:04]} 6. h3 {[%clk 00:15:01]} {[%emt 00:00:02]} Bh5 {[%clk
00:15:06]} {[%emt 00:00:03]} 7. Bd3 {[%clk 00:13:30]} {[%emt 00:01:36]} Bd6
{[%clk 00:15:09]} {[%emt 00:00:02]} 8. O-O {[%clk 00:13:31]} {[%emt 00:00:05]}
O-O {[%clk 00:15:08]} {[%emt 00:00:05]} 9. c3 {[%clk 00:13:34]} {[%emt
00:00:02]} Bxf4 {[%clk 00:15:11]} {[%emt 00:00:02]} 10. exf4 {[%clk 00:13:38]}
{[%emt 00:00:02]} Nbd7 {[%clk 00:15:15]} {[%emt 00:00:01]} 11. Re1 {[%clk
00:13:29]} {[%emt 00:00:14]} Bxf3 {[%clk 00:15:13]} {[%emt 00:00:07]} 12. Nxf3
{[%clk 00:13:28]} {[%emt 00:00:06]} Qb6 {[%clk 00:15:17]} {[%emt 00:00:01]} 13.
b4 {[%clk 00:12:52]} {[%emt 00:00:41]} a5 {[%clk 00:15:20]} {[%emt 00:00:02]}
14. a3 {[%clk 00:12:56]} axb4 {[%clk 00:15:24]} {[%emt 00:00:02]} 15. axb4
{[%clk 00:13:01]} Qc7 {[%clk 00:15:28]} {[%emt 00:00:02]} 16. Ne5 {[%clk
00:12:42]} {[%emt 00:00:23]} Rxa1 {[%clk 00:15:16]} {[%emt 00:00:18]} 17. Qxa1
{[%clk 00:12:46]} b5 {[%clk 00:15:19]} {[%emt 00:00:02]} 18. Re2 {[%clk
00:12:32]} {[%emt 00:00:19]} Nb6 {[%clk 00:15:22]} {[%emt 00:00:03]} 19. Ra2
{[%clk 00:12:32]} {[%emt 00:00:04]} Na4 {[%clk 00:15:25]} {[%emt 00:00:02]} 20.
Bc2 {[%clk 00:12:25]} {[%emt 00:00:11]} Ne4 {[%clk 00:14:55]} {[%emt 00:00:35]}
21. Bxa4 {[%clk 00:12:24]} {[%emt 00:00:07]} bxa4 {[%clk 00:14:59]} {[%emt
00:00:01]} 22. Rxa4 {[%clk 00:12:28]} f6 {[%clk 00:15:03]} {[%emt 00:00:01]} 23.
Nd3 {[%clk 00:12:32]} Qf7 {[%clk 00:14:34]} {[%emt 00:00:35]} 24. Nc5 {[%clk
00:11:14]} {[%emt 00:01:22]} Nxc5 {[%clk 00:13:47]} {[%emt 00:00:52]} 25. bxc5
{[%clk 00:11:18]} {[%emt 00:00:01]} h5 {[%clk 00:13:50]} {[%emt 00:00:02]} 26.
Ra6 {[%clk 00:11:14]} {[%emt 00:00:09]} e5 {[%clk 00:13:51]} {[%emt 00:00:04]}
27. f5 {[%clk 00:10:42]} {[%emt 00:00:38]} exd4 {[%clk 00:13:34]} {[%emt
00:00:21]} 28. cxd4 {[%clk 00:10:46]} {[%emt 00:00:02]} Qd7 {[%clk 00:13:38]}
29. Qa4 {[%clk 00:10:29]} {[%emt 00:00:22]} Qxf5 {[%clk 00:13:19]} {[%emt
00:00:24]} 30. Qxc6 {[%clk 00:10:29]} {[%emt 00:00:05]} Kh7 {[%clk 00:12:54]}
{[%emt 00:00:29]} 31. Qe6 {[%clk 00:09:23]} {[%emt 00:01:12]} Qf4 {[%clk
00:12:55]} {[%emt 00:00:04]} 32. Qe3 {[%clk 00:09:12]} {[%emt 00:00:15]} Qf5
{[%clk 00:12:52]} {[%emt 00:00:08]} 33. Ra7 {[%clk 00:08:57]} {[%emt 00:00:21]}
Qb1+ {[%clk 00:12:55]} {[%emt 00:00:02]} 34. Kh2 {[%clk 00:09:01]} {[%emt
00:00:01]} Qb8+ {[%clk 00:12:58]} {[%emt 00:00:02]} 0-1

[Event "Rapid Tournament (RAP)"]
[Site "Biel, Switzerland"]
[Date "2026.07.12"]
[Round "2.19"]
[White "Kwiatkowski, Maciej"]
[Black "Shukhman, Anna"]
[Result "0-1"]
[TimeControl "15 + 5"]
[WhiteTitle "-"]
[BlackTitle "-"]
[WhiteFideId "1360175"]
[BlackFideId "54180058"]
[WhiteElo "1902"]
[BlackElo "2272"]

1. e4 {[%clk 00:15:07]} {[%emt 00:00:03]} c5 {[%clk 00:15:09]} {[%emt
00:00:01]} 2. Nf3 {[%clk 00:15:04]} {[%emt 00:00:08]} d6 {[%clk 00:15:12]}
{[%emt 00:00:01]} 3. Bc4 {[%clk 00:15:08]} {[%emt 00:00:02]} Nc6 {[%clk
00:14:09]} {[%emt 00:01:09]} 4. c3 {[%clk 00:15:09]} {[%emt 00:00:03]} Nf6
{[%clk 00:13:56]} {[%emt 00:00:18]} 5. d3 {[%clk 00:15:09]} {[%emt 00:00:05]}
g6 {[%clk 00:13:34]} {[%emt 00:00:27]} 6. O-O {[%clk 00:14:51]} {[%emt
00:00:23]} Bg7 {[%clk 00:13:39]} 7. Bg5 {[%clk 00:14:25]} {[%emt 00:00:31]} O-O
{[%clk 00:13:15]} {[%emt 00:00:29]} 8. Bb3 {[%clk 00:14:22]} {[%emt 00:00:07]}
b5 {[%clk 00:10:52]} {[%emt 00:02:29]} 9. a3 {[%clk 00:13:19]} {[%emt
00:01:08]} Rb8 {[%clk 00:09:45]} {[%emt 00:01:11]} 10. Nbd2 {[%clk 00:11:57]}
{[%emt 00:01:27]} c4 {[%clk 00:09:16]} {[%emt 00:00:35]} 11. Bxf6 {[%clk
00:10:12]} {[%emt 00:01:49]} Bxf6 {[%clk 00:09:02]} {[%emt 00:00:18]} 12. dxc4
{[%clk 00:10:16]} {[%emt 00:00:02]} bxc4 {[%clk 00:08:52]} {[%emt 00:00:15]} 13.
Nxc4 {[%clk 00:10:12]} {[%emt 00:00:07]} Be6 {[%clk 00:07:38]} {[%emt
00:01:21]} 14. Qe2 {[%clk 00:10:00]} {[%emt 00:00:18]} Rxb3 {[%clk 00:07:40]}
{[%emt 00:00:03]} 15. Rab1 {[%clk 00:09:54]} {[%emt 00:00:11]} Qc7 {[%clk
00:07:33]} {[%emt 00:00:11]} 16. Ne3 {[%clk 00:09:46]} {[%emt 00:00:13]} Rfb8
{[%clk 00:07:28]} {[%emt 00:00:11]} 17. h3 {[%clk 00:09:22]} {[%emt 00:00:29]}
Qb7 {[%clk 00:07:26]} {[%emt 00:00:06]} 0-1

[Event "Rapid Tournament (RAP)"]
[Site "Biel, Switzerland"]
[Date "2026.07.12"]
[Round "2.20"]
[White "Dong, Hongfu"]
[Black "Lang, Fabian"]
[Result "1-0"]
[TimeControl "15 + 5"]
[WhiteTitle "-"]
[BlackTitle "-"]
[WhiteFideId "8626960"]
[BlackFideId "1310160"]
[WhiteElo "2271"]
[BlackElo "1900"]

1. e4 {[%clk 00:15:08]} {[%emt 00:00:04]} c6 {[%clk 00:15:08]} 2. d4 {[%clk
00:15:10]} {[%emt 00:00:02]} d5 {[%clk 00:15:12]} {[%emt 00:00:02]} 3. e5
{[%clk 00:15:14]} {[%emt 00:00:03]} c5 {[%clk 00:15:15]} 4. Nf3 {[%clk
00:15:17]} {[%emt 00:00:02]} Nc6 {[%clk 00:15:08]} {[%emt 00:00:12]} 5. dxc5
{[%clk 00:15:19]} {[%emt 00:00:03]} Bg4 {[%clk 00:15:10]} {[%emt 00:00:03]} 6.
c3 {[%clk 00:15:05]} {[%emt 00:00:19]} e6 {[%clk 00:15:10]} {[%emt 00:00:04]} 7.
b4 {[%clk 00:15:09]} {[%emt 00:00:02]} Nge7 {[%clk 00:14:42]} {[%emt 00:00:33]}
8. Bb5 {[%clk 00:14:11]} {[%emt 00:01:02]} Ng6 {[%clk 00:14:35]} {[%emt
00:00:12]} 9. Nbd2 {[%clk 00:13:35]} {[%emt 00:00:41]} Ngxe5 {[%clk 00:12:52]}
{[%emt 00:01:50]} 10. h3 {[%clk 00:13:38]} {[%emt 00:00:01]} Bxf3 {[%clk
00:12:45]} {[%emt 00:00:12]} 11. Nxf3 {[%clk 00:13:41]} {[%emt 00:00:01]} Nxf3+
{[%clk 00:12:36]} {[%emt 00:00:14]} 12. Qxf3 {[%clk 00:13:43]} {[%emt
00:00:02]} Be7 {[%clk 00:12:19]} {[%emt 00:00:24]} 13. O-O {[%clk 00:13:46]}
{[%emt 00:00:02]} O-O {[%clk 00:12:22]} {[%emt 00:00:02]} 14. Bb2 {[%clk
00:13:48]} {[%emt 00:00:04]} Bf6 {[%clk 00:12:08]} {[%emt 00:00:18]} 15. a3
{[%clk 00:13:49]} {[%emt 00:00:04]} Qc7 {[%clk 00:10:40]} {[%emt 00:01:33]} 16.
Rfe1 {[%clk 00:13:06]} {[%emt 00:00:47]} b6 {[%clk 00:09:59]} {[%emt 00:00:47]}
17. Qe3 {[%clk 00:12:23]} {[%emt 00:00:47]} Rfb8 {[%clk 00:09:14]} {[%emt
00:00:50]} 18. Rab1 {[%clk 00:11:40]} {[%emt 00:00:49]} a6 {[%clk 00:08:39]}
{[%emt 00:00:40]} 19. cxb6 {[%clk 00:09:55]} {[%emt 00:01:50]} Rxb6 {[%clk
00:07:24]} {[%emt 00:01:20]} 20. Bf1 {[%clk 00:09:40]} {[%emt 00:00:19]} a5
{[%clk 00:06:36]} {[%emt 00:00:55]} 21. b5 {[%clk 00:05:23]} {[%emt 00:04:22]}
Ne7 {[%clk 00:05:50]} {[%emt 00:00:50]} 22. c4 {[%clk 00:04:52]} {[%emt
00:00:37]} Nf5 {[%clk 00:03:05]} {[%emt 00:02:49]} 23. Qf3 {[%clk 00:04:30]}
{[%emt 00:00:27]} Bxb2 {[%clk 00:01:56]} {[%emt 00:01:15]} 24. Rxb2 {[%clk
00:04:33]} {[%emt 00:00:01]} Rd8 {[%clk 00:01:44]} {[%emt 00:00:17]} 25. cxd5
{[%clk 00:04:37]} {[%emt 00:00:02]} Rxd5 {[%clk 00:01:39]} {[%emt 00:00:10]} 26.
Qxd5 {[%clk 00:04:40]} {[%emt 00:00:01]} 1-0

[Event "Rapid Tournament (RAP)"]
[Site "Biel, Switzerland"]
[Date "2026.07.12"]
[Round "2.21"]
[White "Ranieri, Pierpaolo"]
[Black "Cao, Qingfeng"]
[Result "0-1"]
[TimeControl "15 + 5"]
[WhiteTitle "-"]
[BlackTitle "-"]
[WhiteFideId "893986"]
[BlackFideId "8627568"]
[WhiteElo "1891"]
[BlackElo "2265"]

1. d4 {[%clk 00:15:08]} {[%emt 00:00:03]} Nf6 {[%clk 00:15:08]} {[%emt
00:00:02]} 2. Nf3 {[%clk 00:15:10]} {[%emt 00:00:06]} e6 {[%clk 00:15:09]}
{[%emt 00:00:02]} 3. c4 {[%clk 00:15:13]} {[%emt 00:00:03]} b6 {[%clk
00:15:09]} {[%emt 00:00:04]} 4. g3 {[%clk 00:15:15]} {[%emt 00:00:02]} Bb7
{[%clk 00:15:06]} {[%emt 00:00:09]} 5. Bg2 {[%clk 00:15:18]} {[%emt 00:00:02]}
Bb4+ {[%clk 00:15:08]} {[%emt 00:00:02]} 6. Bd2 {[%clk 00:15:21]} {[%emt
00:00:02]} c5 {[%clk 00:15:11]} {[%emt 00:00:03]} 7. Bxb4 {[%clk 00:15:13]}
{[%emt 00:00:14]} cxb4 {[%clk 00:15:14]} {[%emt 00:00:01]} 8. a3 {[%clk
00:15:15]} {[%emt 00:00:03]} bxa3 {[%clk 00:15:14]} {[%emt 00:00:04]} 9. Rxa3
{[%clk 00:15:17]} {[%emt 00:00:04]} O-O {[%clk 00:15:05]} {[%emt 00:00:14]} 10.
O-O {[%clk 00:15:19]} {[%emt 00:00:03]} d6 {[%clk 00:15:04]} {[%emt 00:00:06]}
11. Nc3 {[%clk 00:15:16]} {[%emt 00:00:08]} a5 {[%clk 00:14:35]} {[%emt
00:00:34]} 12. Re1 {[%clk 00:15:05]} {[%emt 00:00:17]} Na6 {[%clk 00:13:33]}
{[%emt 00:01:06]} 13. e4 {[%clk 00:14:48]} {[%emt 00:00:21]} Rc8 {[%clk
00:13:20]} {[%emt 00:00:18]} 14. b3 {[%clk 00:12:53]} {[%emt 00:02:01]} Nb4
{[%clk 00:13:02]} {[%emt 00:00:23]} 15. Ra1 {[%clk 00:12:20]} {[%emt 00:00:38]}
Qe7 {[%clk 00:10:33]} {[%emt 00:02:34]} 16. e5 {[%clk 00:10:48]} {[%emt
00:01:37]} dxe5 {[%clk 00:10:02]} {[%emt 00:00:35]} 17. dxe5 {[%clk 00:10:10]}
{[%emt 00:00:44]} Nd7 {[%clk 00:09:18]} {[%emt 00:00:49]} 18. Nb5 {[%clk
00:09:59]} {[%emt 00:00:16]} Nc5 {[%clk 00:08:54]} {[%emt 00:00:29]} 19. Nd6
{[%clk 00:09:33]} {[%emt 00:00:31]} Rcd8 {[%clk 00:08:24]} {[%emt 00:00:35]} 20.
Nd4 {[%clk 00:07:54]} {[%emt 00:01:44]} Bxg2 {[%clk 00:08:12]} {[%emt
00:00:17]} 21. Kxg2 {[%clk 00:07:57]} {[%emt 00:00:02]} Ncd3 {[%clk 00:08:12]}
{[%emt 00:00:05]} 22. N4b5 {[%clk 00:06:16]} {[%emt 00:01:46]} Nxe1+ {[%clk
00:07:58]} {[%emt 00:00:18]} 23. Qxe1 {[%clk 00:06:20]} {[%emt 00:00:02]} Nc2
{[%clk 00:07:55]} {[%emt 00:00:08]} 24. Qc1 {[%clk 00:06:08]} {[%emt 00:00:16]}
Nxa1 {[%clk 00:07:57]} {[%emt 00:00:04]} 25. Qxa1 {[%clk 00:06:12]} {[%emt
00:00:02]} Qd7 {[%clk 00:07:44]} {[%emt 00:00:17]} 26. Qd4 {[%clk 00:05:50]}
{[%emt 00:00:27]} Qc6+ {[%clk 00:07:45]} {[%emt 00:00:04]} 27. f3 {[%clk
00:05:41]} {[%emt 00:00:14]} Qc5 {[%clk 00:06:59]} {[%emt 00:00:51]} 28. Qxc5
{[%clk 00:04:54]} {[%emt 00:00:52]} bxc5 {[%clk 00:07:02]} {[%emt 00:00:02]} 29.
Nb7 {[%clk 00:04:56]} {[%emt 00:00:03]} Rd2+ {[%clk 00:06:58]} {[%emt
00:00:09]} 30. Kh3 {[%clk 00:04:59]} {[%emt 00:00:02]} Rb8 {[%clk 00:06:23]}
{[%emt 00:00:40]} 31. Nxc5 {[%clk 00:03:54]} {[%emt 00:01:10]} Rxb5 {[%clk
00:06:12]} {[%emt 00:00:16]} 32. cxb5 {[%clk 00:03:55]} {[%emt 00:00:05]} Rd5
{[%clk 00:06:14]} {[%emt 00:00:02]} 0-1

[Event "Rapid Tournament (RAP)"]
[Site "Biel, Switzerland"]
[Date "2026.07.12"]
[Round "2.22"]
[White "Tureshbayev, Anuar"]
[Black "Berezovskii, Arina"]
[Result "1-0"]
[TimeControl "15 + 5"]
[WhiteTitle "-"]
[BlackTitle "-"]
[WhiteFideId "651081709"]
[BlackFideId "34449850"]
[WhiteElo "2246"]
[BlackElo "1895"]

1. e4 {[%clk 00:15:06]} {[%emt 00:00:04]} e5 {[%clk 00:15:09]} {[%emt
00:00:04]} 2. Nf3 {[%clk 00:15:09]} Nf6 {[%clk 00:15:13]} {[%emt 00:00:01]} 3.
d3 {[%clk 00:15:06]} {[%emt 00:00:09]} Nc6 {[%clk 00:15:11]} {[%emt 00:00:06]}
4. g3 {[%clk 00:15:07]} {[%emt 00:00:03]} Bc5 {[%clk 00:15:04]} {[%emt
00:00:11]} 5. Bg2 {[%clk 00:15:10]} {[%emt 00:00:02]} O-O {[%clk 00:15:06]}
{[%emt 00:00:04]} 6. O-O {[%clk 00:15:13]} {[%emt 00:00:02]} d6 {[%clk
00:14:56]} {[%emt 00:00:15]} 7. c3 {[%clk 00:15:10]} {[%emt 00:00:08]} Bg4
{[%clk 00:14:44]} {[%emt 00:00:18]} 8. h3 {[%clk 00:15:04]} {[%emt 00:00:10]}
Bh5 {[%clk 00:14:38]} {[%emt 00:00:11]} 9. g4 {[%clk 00:14:23]} {[%emt
00:00:46]} Bg6 {[%clk 00:14:35]} {[%emt 00:00:08]} 10. Bg5 {[%clk 00:14:26]}
{[%emt 00:00:02]} Qe7 {[%clk 00:12:48]} {[%emt 00:01:52]} 11. d4 {[%clk
00:13:19]} {[%emt 00:01:12]} Bb6 {[%clk 00:11:58]} {[%emt 00:00:56]} 12. d5
{[%clk 00:13:17]} {[%emt 00:00:07]} Nb8 {[%clk 00:11:20]} {[%emt 00:00:44]} 13.
Nbd2 {[%clk 00:13:10]} {[%emt 00:00:11]} Nbd7 {[%clk 00:11:02]} {[%emt
00:00:23]} 14. Qe2 {[%clk 00:13:00]} {[%emt 00:00:15]} h6 {[%clk 00:09:54]}
{[%emt 00:01:13]} 15. Bh4 {[%clk 00:12:59]} {[%emt 00:00:06]} Bh7 {[%emt
00:05:52]} 16. a4 {[%clk 00:09:40]} a5 {[%clk 00:07:17]} {[%emt 00:00:19]} 17.
g5 {[%clk 00:07:40]} {[%emt 00:02:04]} hxg5 {[%clk 00:06:31]} {[%emt 00:00:51]}
18. Nxg5 {[%clk 00:07:43]} {[%emt 00:00:02]} Rfe8 {[%clk 00:05:36]} {[%emt
00:01:00]} 19. Nc4 {[%clk 00:07:30]} {[%emt 00:00:18]} Bc5 {[%clk 00:04:52]}
{[%emt 00:00:50]} 20. Nxh7 {[%clk 00:07:05]} {[%emt 00:00:29]} Kxh7 {[%clk
00:04:47]} {[%emt 00:00:10]} 21. Ne3 {[%clk 00:06:40]} {[%emt 00:00:30]} Bxe3
{[%clk 00:03:24]} {[%emt 00:01:28]} 22. fxe3 {[%clk 00:06:43]} {[%emt
00:00:02]} Rh8 {[%clk 00:03:11]} {[%emt 00:00:18]} 23. Rf5 {[%clk 00:06:02]}
{[%emt 00:00:46]} g6 {[%clk 00:02:53]} {[%emt 00:00:23]} 24. Rxf6 {[%clk
00:05:44]} {[%emt 00:00:24]} Nxf6 {[%clk 00:01:09]} {[%emt 00:01:49]} 25. Rf1
{[%clk 00:05:45]} {[%emt 00:00:03]} Rhg8 {[%clk 00:00:37]} {[%emt 00:00:37]} 26.
Bxf6 {[%clk 00:05:43]} {[%emt 00:00:07]} Qd7 {[%clk 00:00:40]} {[%emt
00:00:03]} 27. Rf5 {[%clk 00:05:31]} {[%emt 00:00:17]} Rge8 {[%clk 00:00:15]}
{[%emt 00:00:29]} 28. Rh5+ {[%clk 00:05:33]} {[%emt 00:00:03]} 1-0

[Event "Rapid Tournament (RAP)"]
[Site "Biel, Switzerland"]
[Date "2026.07.12"]
[Round "2.23"]
[White "Varela Tavares, Goncalo"]
[Black "Haimovich, Tal"]
[Result "0-1"]
[TimeControl "15 + 5"]
[WhiteTitle "-"]
[BlackTitle "-"]
[WhiteFideId "1344773"]
[BlackFideId "2801698"]
[WhiteElo "1880"]
[BlackElo "2245"]

1. Nf3 {[%clk 00:15:07]} {[%emt 00:00:02]} Nf6 {[%clk 00:15:07]} {[%emt
00:00:05]} 2. b3 {[%clk 00:15:10]} d5 {[%clk 00:15:06]} {[%emt 00:00:07]} 3.
Bb2 {[%clk 00:15:11]} {[%emt 00:00:04]} e6 {[%clk 00:15:05]} {[%emt 00:00:07]}
4. g3 {[%clk 00:15:12]} {[%emt 00:00:03]} Be7 {[%clk 00:15:08]} {[%emt
00:00:02]} 5. Bg2 {[%clk 00:15:15]} {[%emt 00:00:03]} O-O {[%clk 00:15:10]}
{[%emt 00:00:04]} 6. O-O {[%clk 00:15:15]} {[%emt 00:00:03]} c5 {[%clk
00:15:10]} {[%emt 00:00:06]} 7. e3 {[%clk 00:15:14]} {[%emt 00:00:06]} Nc6
{[%clk 00:15:01]} {[%emt 00:00:14]} 8. d4 {[%clk 00:15:16]} {[%emt 00:00:03]}
Bd7 {[%clk 00:14:50]} {[%emt 00:00:16]} 9. Nbd2 {[%clk 00:15:14]} {[%emt
00:00:05]} cxd4 {[%clk 00:14:45]} {[%emt 00:00:11]} 10. exd4 {[%clk 00:14:56]}
{[%emt 00:00:23]} Rc8 {[%clk 00:14:43]} {[%emt 00:00:08]} 11. c4 {[%clk
00:14:34]} {[%emt 00:00:27]} Re8 {[%clk 00:13:45]} {[%emt 00:01:03]} 12. c5
{[%clk 00:14:23]} {[%emt 00:00:15]} b6 {[%clk 00:13:41]} {[%emt 00:00:10]} 13.
cxb6 {[%clk 00:14:03]} {[%emt 00:00:25]} Qxb6 {[%clk 00:13:39]} {[%emt
00:00:07]} 14. Ne5 {[%clk 00:11:33]} {[%emt 00:02:33]} Red8 {[%clk 00:11:42]}
{[%emt 00:02:03]} 15. Ndf3 {[%clk 00:11:14]} {[%emt 00:00:24]} Be8 {[%clk
00:11:35]} {[%emt 00:00:12]} 16. Nxc6 {[%clk 00:10:27]} {[%emt 00:00:52]} Rxc6
{[%clk 00:11:38]} {[%emt 00:00:02]} 17. Ne5 {[%clk 00:10:25]} {[%emt 00:00:07]}
Rc7 {[%clk 00:11:42]} {[%emt 00:00:02]} 18. Rc1 {[%clk 00:09:47]} {[%emt
00:00:41]} Rdc8 {[%clk 00:11:46]} {[%emt 00:00:03]} 19. Rxc7 {[%clk 00:09:25]}
{[%emt 00:00:27]} Rxc7 {[%clk 00:11:48]} {[%emt 00:00:02]} 20. Qb1 {[%clk
00:09:22]} {[%emt 00:00:08]} Nd7 {[%clk 00:11:35]} {[%emt 00:00:19]} 21. Rc1
{[%clk 00:08:59]} {[%emt 00:00:27]} Rxc1+ {[%clk 00:11:21]} {[%emt 00:00:19]}
22. Qxc1 {[%clk 00:09:02]} {[%emt 00:00:02]} Nxe5 {[%clk 00:11:23]} {[%emt
00:00:03]} 23. dxe5 {[%clk 00:09:05]} {[%emt 00:00:02]} Bc5 {[%clk 00:11:27]}
{[%emt 00:00:01]} 24. Qc2 {[%clk 00:09:01]} {[%emt 00:00:09]} a5 {[%clk
00:11:25]} {[%emt 00:00:07]} 25. Qd2 {[%clk 00:08:16]} {[%emt 00:00:50]} a4
{[%clk 00:11:00]} {[%emt 00:00:31]} 26. bxa4 {[%clk 00:07:52]} {[%emt
00:00:28]} Bxa4 {[%clk 00:11:03]} {[%emt 00:00:03]} 27. Bf1 {[%clk 00:07:46]}
{[%emt 00:00:10]} h5 {[%clk 00:10:26]} {[%emt 00:00:42]} 28. h4 {[%clk
00:06:41]} {[%emt 00:01:10]} Bc6 {[%clk 00:10:14]} {[%emt 00:00:18]} 29. Bd3
{[%clk 00:06:15]} {[%emt 00:00:31]} Bb7 {[%clk 00:10:16]} {[%emt 00:00:03]} 30.
Bc3 {[%clk 00:06:11]} {[%emt 00:00:08]} d4 {[%clk 00:10:06]} {[%emt 00:00:15]}
31. Ba5 {[%clk 00:04:12]} {[%emt 00:02:04]} Qc6 {[%clk 00:10:09]} {[%emt
00:00:02]} 32. Kf1 {[%clk 00:03:55]} {[%emt 00:00:22]} Qh1+ {[%clk 00:10:11]}
{[%emt 00:00:03]} 33. Ke2 {[%clk 00:03:58]} {[%emt 00:00:01]} Bf3# {[%clk
00:10:13]} {[%emt 00:00:03]} 0-1